bitfinex-derivatives/quotes_ETHF0:USTF0_20250101
["timestamp","ask_amount","ask_price","bid_price","bid_amount"]
[1735717915475,1.6479,3347.2,3347.1,0.63377083]
[1735717916370,1.6479,3347.2,3347.1,0.33437083]
[1735717918580,1.3485,3347.2,3347.0,1.37451278]
[1735717918775,0.2994,3347.1,3347.0,1.37451278]
[1735717918978,0.2994,3347.1,3347.0,1.70868014]
[1735717920774,0.2994,3347.1,3347.0,1.37451278]
[1735717921128,0.2994,3347.1,3347.0,1.07510278]
[1735717921482,0.2994,3347.1,3347.0,1.37451278]
[1735717925283,0.2994,3347.1,3347.0,1.07510278]
[1735717925484,1.6479,3347.2,3347.1,0.2994]
[1735717927783,1.6479,3347.2,3347.1,0.63320519]
[1735717928679,1.6479,3347.2,3347.1,3.84100519]
[1735717929289,1.3485,3347.2,3347.1,3.84100519]
[1735717930001,1.3485,3347.2,3347.1,3.84096398]
[1735717930288,0.4422,3347.2,3347.1,3.84096398]
[1735717930516,0.4422,3347.2,3347.1,3.84094046]
[1735717930789,0.4422,3347.2,3347.1,4.37488212]
[1735717930990,0.4422,3347.2,3347.1,4.37487477]
[1735717931696,0.29937,3347.5,3347.4,0.29938]
[1735717931893,0.29937,3347.5,3347.4,1.37448278]
[1735717938305,0.29937,3347.5,3347.4,1.07510278]
[1735717941610,0.29937,3347.5,3347.4,1.40924898]
[1735717942382,0.29937,3347.5,3347.4,1.40925523]
[1735717942509,0.29937,3347.5,3347.4,1.07510278]
[1735717942712,0.29937,3347.5,3347.4,1.4093454]
[1735717945713,0.29937,3347.5,3347.4,1.7087254]
[1735717947716,0.886,3347.6,3347.5,0.29937]
[1735717947717,1.18536,3347.6,3347.5,0.29937]
[1735717947910,1.18536,3347.6,3347.5,0.63361262]
[1735717948568,1.18536,3347.6,3347.5,0.63361441]
[1735717948719,1.18536,3347.6,3347.5,0.33424441]
[1735717949110,1.18536,3347.6,3347.5,0.63362249]
[1735717950909,1.18536,3347.6,3347.5,0.63362299]
[1735717951729,1.18536,3347.6,3347.5,0.29937]
[1735717951817,1.18536,3347.6,3347.5,0.63365603]
[1735717952115,1.18536,3347.6,3347.5,0.33428603]
[1735717953213,1.18536,3347.6,3347.5,0.63365603]
[1735717954912,1.18536,3347.6,3347.5,0.63375594]
[1735717957913,1.18536,3347.6,3347.5,0.63390829]
[1735717959120,1.18536,3347.6,3347.5,1.16926001]
[1735717959719,1.18536,3347.6,3347.5,0.63390829]
[1735717960519,1.18536,3347.6,3347.5,0.63400616]
[1735717961217,1.18536,3347.6,3347.5,0.63399597]
[1735717962624,1.18536,3347.6,3347.5,1.1693928]
[1735717963121,1.18536,3347.6,3347.5,0.33462597]
[1735717967420,1.18536,3347.6,3347.5,0.33458263]
[1735717968026,1.18536,3347.6,3347.4,1.37447278]
[1735717968027,0.29937,3347.5,3347.4,1.37447278]
[1735717968325,0.76087,3347.5,3347.4,6.94499407]
[1735717969626,0.76087,3347.5,3347.4,6.94499552]
[1735717970426,0.76087,3347.5,3347.4,6.0750621]
[1735717970627,0.76087,3347.5,3347.4,6.94501907]
[1735717970926,0.76087,3347.5,3347.4,7.29978041]
[1735717971426,0.76087,3347.5,3347.4,8.62787938]
[1735717972129,0.76087,3347.5,3347.4,11.83567938]
[1735717972827,0.76087,3347.5,3347.4,18.88656336]
[1735717973526,0.76087,3347.5,3347.4,18.3511991]
[1735717973731,0.76087,3347.5,3347.4,18.88655667]
[1735717976727,0.76087,3347.5,3347.4,18.88669332]
[1735717977131,0.76087,3347.5,3347.4,18.88670991]
[1735717978635,0.76087,3347.5,3347.4,11.83582593]
[1735717979832,0.76087,3347.5,3347.4,11.83582026]
[1735717980731,0.76087,3347.5,3347.4,18.8905339]
[1735717980931,0.4615,3347.5,3347.4,18.8905339]
[1735717981926,0.4615,3347.5,3347.4,21.25308558]
[1735717983036,0.4615,3347.5,3347.4,20.71766112]
[1735717983936,0.4615,3347.5,3347.4,11.3003958]
[1735717985033,0.4615,3347.5,3347.4,20.71118032]
[1735717985739,0.4615,3347.5,3347.4,20.71086113]
[1735717987340,0.4615,3347.5,3347.4,20.71079339]
[1735717988535,0.925,3347.5,3347.4,20.71079339]
[1735717988741,0.925,3347.5,3347.4,11.29352807]
[1735717991850,0.4615,3347.5,3347.4,11.29352807]
[1735717994942,0.4615,3347.5,3347.4,10.61096107]
[1735717995147,0.4615,3347.5,3347.4,11.29362909]
[1735717995747,5.88319122,3348.0,3347.4,10.99425909]
[1735717995942,6.30949122,3348.0,3347.9,1.37443278]
[1735717997044,6.60881122,3348.0,3347.9,1.37443278]
[1735717997545,0.72562,3348.0,3347.9,1.37443278]
[1735717997741,0.72562,3348.0,3347.9,1.70257344]
[1735717998043,0.72562,3348.0,3347.9,1.37443278]
[1735717998447,0.4263,3348.0,3347.8,7.90749417]
[1735717998651,0.29933,3347.9,3347.8,7.90749417]
[1735717998847,0.4263,3348.0,3347.8,9.3107346]
[1735717999148,0.72563,3348.0,3347.9,0.29933]
[1735717999748,0.4263,3348.0,3347.9,0.29933]
[1735718000545,0.72562,3348.0,3347.9,0.29933]
[1735718003543,0.72563,3348.0,3347.9,0.29933]
[1735718004348,0.4263,3348.0,3347.9,0.29933]
[1735718004849,0.4263,3348.0,3347.9,0.62742898]
[1735718005147,0.72562,3348.0,3347.9,0.29933]
[1735718005347,0.4263,3348.0,3347.9,0.29933]
[1735718005848,0.72562,3348.0,3347.9,0.29933]
[1735718006044,0.4263,3348.0,3347.9,0.29933]
[1735718006449,0.72562,3348.0,3347.9,0.29933]
[1735718006750,0.4263,3348.0,3347.9,1.78341984]
[1735718007050,0.4263,3348.0,3347.9,1.78340689]
[1735718008645,0.4263,3348.0,3347.9,8.87972839]
[1735718008952,0.4263,3348.0,3347.9,8.15893144]
[1735718009952,0.4263,3348.0,3347.9,15.20847269]
[1735718010156,0.4263,3348.0,3347.9,15.20840173]
[1735718010451,0.4263,3348.0,3347.9,16.28350451]
[1735718011654,0.4263,3348.0,3347.9,15.20840173]
[1735718012551,0.4263,3348.0,3347.9,14.85416686]
[1735718013252,0.4263,3348.0,3347.9,14.85393213]
[1735718013449,0.4263,3348.0,3347.9,18.41587549]
[1735718013664,0.4263,3348.0,3347.9,11.36633424]
[1735718013851,0.4263,3348.0,3347.9,11.01219162]
[1735718018860,0.4263,3348.0,3347.9,11.012107]
[1735718019355,0.4263,3348.0,3347.9,12.08720978]
[1735718019553,5.88319122,3348.8,3347.9,12.89023324]
[1735718019554,0.29928,3348.5,3347.9,12.89023324]
[1735718019859,0.29928,3348.5,3348.4,1.37439278]
[1735718020059,0.29928,3348.5,3348.4,1.07510278]
[1735718020259,0.29928,3348.5,3348.4,1.37439278]
[1735718020663,0.29928,3348.5,3348.4,1.07510278]
[1735718020961,1.18508,3348.6,3348.5,0.29928]
[1735718021167,0.29928,3348.5,3348.4,1.37438278]
[1735718024462,0.8858,3348.6,3348.4,1.07510278]
[1735718024758,0.8858,3348.6,3348.5,0.29928]
[1735718025159,0.8858,3348.6,3348.5,0.73228]
[1735718025359,0.8858,3348.6,3348.5,1.05991659]
[1735718025767,0.8858,3348.6,3348.5,0.62689194]
[1735718026862,1.18507,3348.6,3348.5,0.62689194]
[1735718027061,1.18507,3348.6,3348.5,3.83469194]
[1735718028565,1.18507,3348.6,3348.5,3.50708]
[1735718030165,1.18507,3348.6,3348.5,4.28290278]
[1735718030569,1.18507,3348.6,3348.5,4.58218278]
[1735718030768,1.18507,3348.6,3348.5,4.28290278]
[1735718032067,1.18507,3348.6,3348.5,4.58218278]
[1735718036177,1.18507,3348.6,3348.5,3.2078]
[1735718038968,0.29928,3348.5,3348.4,1.07510278]
[1735718040475,0.29928,3348.5,3348.4,1.70222281]
[1735718040675,0.29928,3348.5,3348.4,1.40293281]
[1735718041475,0.29928,3348.5,3348.4,1.40293907]
[1735718043372,0.29928,3348.5,3348.4,1.07510278]
[1735718043575,0.29928,3348.5,3348.4,1.40297285]
[1735718043978,0.29928,3348.5,3348.4,1.70226285]
[1735718044877,0.29928,3348.5,3348.4,1.40297285]
[1735718046278,0.8858,3348.6,3348.4,1.40297285]
[1735718046484,1.18508,3348.6,3348.5,0.32794908]
[1735718047684,1.18508,3348.6,3348.5,0.62722908]
[1735718049487,1.18508,3348.6,3348.5,0.62732339]
[1735718049982,1.18508,3348.6,3348.5,0.29928]
[1735718050177,1.18508,3348.6,3348.5,0.62734647]
[1735718051800,0.8858,3348.6,3348.5,0.62735611]
[1735718052300,1.18507,3348.6,3348.5,0.62735611]
[1735718052698,1.18507,3348.6,3348.5,0.62736334]
[1735718053298,0.8858,3348.6,3348.5,0.62736334]
[1735718055895,0.8858,3348.6,3348.5,0.62732933]
[1735718056296,1.18507,3348.6,3348.5,0.32804933]
[1735718056496,1.18507,3348.6,3348.5,0.62732933]
[1735718057700,0.8858,3348.6,3348.5,0.62732933]
[1735718058098,1.18507,3348.6,3348.5,0.32804933]
[1735718058298,1.18507,3348.6,3348.5,0.62732933]
[1735718058900,1.18507,3348.6,3348.5,0.62724891]
[1735718059506,0.75857,3348.6,3348.5,0.62725107]
[1735718059702,0.75857,3348.6,3348.5,1.05865107]
[1735718060100,5.88319122,3348.9,3348.8,0.29925]
[1735718060296,5.88319122,3348.9,3348.8,5.26432275]
[1735718061301,5.88319122,3348.9,3348.8,5.26403504]
[1735718062108,4.6089,3349.4,3349.3,0.29921]
[1735718062796,4.6089,3349.4,3349.3,0.72001]
[1735718063700,0.4569,3349.4,3349.3,0.72001]
[1735718064504,0.4569,3349.4,3349.3,0.4208]
[1735718064704,0.7561,3349.4,3349.3,0.72001]
[1735718066110,0.7561,3349.4,3349.3,0.4208]
[1735718066809,0.7561,3349.4,3349.3,0.72001]
[1735718072006,0.18889865,3349.5,3349.3,0.4208]
[1735718072210,0.48809865,3349.5,3349.4,1.37430278]
[1735718072812,0.48809865,3349.5,3349.4,1.07510278]
[1735718078610,0.48809865,3349.5,3349.4,1.37430278]
[1735718081614,0.48808865,3349.5,3349.4,1.37430278]
[1735718082411,0.29919,3349.5,3349.4,1.37430278]
[1735718082616,0.72648,3349.6,3349.5,0.29919]
[1735718083318,0.4273,3349.6,3349.4,1.07510278]
[1735718083617,0.72649,3349.6,3349.5,0.29919]
[1735718084121,0.72649,3349.6,3349.5,0.29732258]
[1735718085021,0.72649,3349.6,3349.4,1.37429278]
[1735718085215,0.72649,3349.6,3349.5,0.29919]
[1735718085516,0.4273,3349.6,3349.5,0.62618299]
[1735718085716,0.4273,3349.6,3349.5,1.04878299]
[1735718085915,0.4273,3349.6,3349.5,1.40196967]
[1735718086121,0.4273,3349.6,3349.5,1.04878299]
[1735718086512,0.4273,3349.6,3349.5,1.40199035]
[1735718086713,0.4273,3349.6,3349.5,1.04878299]
[1735718087215,0.4273,3349.6,3349.5,1.40197803]
[1735718087612,0.4273,3349.6,3349.5,1.4020936]
[1735718088018,0.74016,3349.9,3349.8,0.29916]
[1735718088220,0.74016,3349.9,3349.8,3.83399297]
[1735718088518,0.74016,3349.9,3349.8,4.98897766]
[1735718089417,0.74016,3349.9,3349.8,4.98901547]
[1735718089625,0.29913,3350.2,3349.8,5.15265547]
[1735718089815,0.29913,3350.2,3350.1,1.37424278]
[1735718090015,0.4267,3350.3,3350.2,0.29913]
[1735718090219,0.4267,3350.3,3350.2,3.50693]
[1735718090420,0.4267,3350.3,3350.2,3.96973]
[1735718091517,0.72582,3350.3,3350.2,3.96973]
[1735718092215,0.72582,3350.3,3350.2,3.50693]
[1735718092819,6.63081122,3351.1,3350.2,3.50693]
[1735718092820,0.29906,3351.0,3350.7,0.29908]
[1735718093022,0.8427,3350.8,3350.7,1.155]
[1735718093213,0.8427,3350.8,3350.2,3.2078]
[1735718093214,1.91780278,3350.8,3350.2,3.2078]
[1735718093517,0.29912,3350.3,3350.2,4.28290278]
[1735718094421,4.152,3350.7,3350.2,4.28290278]
[1735718094422,0.29909,3350.6,3350.2,4.28290278]
[1735718094722,0.29911,3350.5,3350.4,1.07510278]
[1735718100213,0.29911,3350.5,3350.2,4.28290278]
[1735718100214,0.4347,3350.5,3350.2,4.28290278]
[1735718100419,0.29912,3350.3,3350.2,4.28290278]
[1735718100624,0.29912,3350.3,3348.5,14.15101545]
[1735718100625,4.152,3350.3,3349.8,3.2078]
[1735718100927,0.29915,3349.9,3349.8,4.28290278]
[1735718102227,0.29915,3349.9,3349.8,3.2078]
[1735718103922,0.29915,3349.9,3349.8,3.50696]
[1735718105029,0.29915,3350.0,3349.9,0.29915]
[1735718105229,0.29915,3350.0,3349.8,3.2078]
[1735718105230,0.29915,3350.0,3349.8,3.50696]
[1735718105527,0.8771,3349.9,3349.8,3.50696]
[1735718106429,1.17625,3349.9,3349.8,3.50696]
[1735718106629,0.8771,3349.9,3349.8,3.50696]
[1735718106823,1.17625,3349.9,3349.8,3.50696]
[1735718107026,0.8771,3349.9,3349.8,3.50696]
[1735718108228,1.17625,3349.9,3349.8,3.2078]
[1735718109334,1.17625,3349.9,3349.8,3.50696]
[1735718121053,1.17625,3349.9,3349.8,3.2078]
[1735718121350,4.152,3349.8,3349.4,7.89645088]
[1735718121551,4.152,3349.7,3349.4,7.89645088]
[1735718121747,0.29919,3349.5,3349.4,8.19564088]
[1735718122450,0.29919,3349.5,3349.4,3.50699]
[1735718125052,0.29919,3349.5,3349.4,4.57952895]
[1735718125353,0.29919,3349.5,3349.4,4.90518502]
[1735718125558,0.29919,3349.5,3349.4,4.90518302]
[1735718126349,0.29919,3349.5,3349.4,4.57952895]
[1735718126555,0.29919,3349.5,3349.4,4.90523827]
[1735718128558,0.29919,3349.5,3349.4,4.60604827]
[1735718128953,0.73869,3349.5,3349.4,3.53350932]
[1735718129454,0.73869,3349.5,3349.4,3.2078]
[1735718129754,0.73869,3349.5,3349.4,3.53386153]
[1735718130059,1.51203895,3349.5,3349.1,4.68865088]
[1735718130261,1.37175895,3349.2,3349.1,4.68865088]
[1735718130458,1.37175895,3349.2,3349.1,5.01478857]
[1735718131159,1.37175895,3349.2,3349.1,0.32613769]
[1735718131354,5.52375895,3349.2,3349.1,0.32613769]
[1735718131561,0.29925,3348.8,3348.7,4.68865088]
[1735718131858,1.37178895,3348.8,3348.7,4.68865088]
[1735718132056,0.29925,3348.8,3348.7,4.68865088]
[1735718132559,0.73725,3348.8,3348.7,4.68865088]
[1735718132759,0.73725,3348.8,3348.7,0.29926]
[1735718134364,0.438,3348.8,3348.7,0.29926]
[1735718136375,0.73725,3348.8,3348.7,0.29926]
[1735718136575,0.438,3348.8,3348.7,0.29926]
[1735718138072,4.152,3349.2,3348.5,5.47445245]
[1735718138272,0.29923,3349.1,3348.9,3.2078]
[1735718138568,4.152,3349.2,3349.0,0.4354]
[1735718138775,0.29922,3349.2,3349.1,0.29923]
[1735718139275,0.72531,3349.3,3349.2,0.29922]
[1735718139573,4.152,3349.4,3349.3,0.29921]
[1735718139771,4.152,3349.4,3349.3,3.50701]
[1735718140373,4.4512,3349.4,3349.3,3.50701]
[1735718140778,0.29923,3349.1,3349.0,0.4354]
[1735718140973,0.29924,3348.9,3348.8,4.68865088]
[1735718141372,0.462,3349.0,3348.4,3.2078]
[1735718141573,0.29928,3348.5,3348.4,3.2078]
[1735718148691,0.29929,3348.4,3348.3,3.50645994]
[1735718150581,0.29929,3348.4,3348.3,3.83158373]
[1735718151087,0.29929,3348.4,3348.3,3.83159347]
[1735718153693,0.29929,3348.4,3348.3,3.38599347]
[1735718154191,0.29929,3348.4,3348.3,3.38609724]
[1735718154990,0.29929,3348.4,3348.3,3.06085994]
[1735718155187,0.2993,3348.3,3348.2,3.2078]
[1735718155492,0.2993,3348.3,3348.2,3.53314677]
[1735718157185,0.2993,3348.3,3348.2,0.32534677]
[1735718157389,0.2993,3348.3,3348.2,0.32536732]
[1735718159091,0.2993,3348.3,3348.2,0.62467732]
[1735718160396,0.29928,3348.5,3348.3,0.29929]
[1735718160589,0.29928,3348.5,3348.4,1.06175732]
[1735718160785,0.29928,3348.5,3348.4,0.73639]
[1735718161791,0.29928,3348.5,3348.4,0.4371]
[1735718165092,0.2993,3348.3,3348.2,3.5071]
[1735718165490,0.2993,3348.3,3348.2,3.2078]
[1735718167101,0.2993,3348.3,3348.2,3.50711]
[1735718167393,0.2993,3348.3,3348.2,3.2078]
[1735718167591,0.2993,3348.3,3348.2,3.50711]
[1735718168586,0.2993,3348.3,3348.2,3.2078]
[1735718173400,0.2993,3348.3,3348.2,3.50711]
[1735718173595,4.6149,3348.6,3348.2,3.50711]
[1735718173596,0.29929,3348.4,3348.3,0.29929]
[1735718174401,4.6149,3348.6,3348.2,3.2078]
[1735718174702,0.2993,3348.3,3348.2,3.2078]
[1735718177696,0.2993,3348.3,3348.2,7.89645088]
[1735718177995,0.2993,3348.3,3348.2,8.19576088]
[1735718184312,4.6149,3348.6,3348.2,7.89645088]
[1735718184605,0.2993,3348.4,3348.3,0.29929]
[1735718185208,0.2993,3348.4,3348.3,0.64086031]
[1735718186509,0.2993,3348.4,3348.3,5.32951119]
[1735718187208,0.2993,3348.4,3348.3,5.32953044]
[1735718187409,0.2993,3348.4,3348.3,4.98794088]
[1735718187614,0.2993,3348.4,3348.3,6.32317636]
[1735718188802,0.2993,3348.4,3348.3,13.37271761]
[1735718191703,0.2993,3348.4,3348.3,13.07342761]
[1735718192306,0.2993,3348.4,3348.3,6.02388636]
[1735718193411,0.2993,3348.4,3348.3,13.07342761]
[1735718195709,0.2993,3348.4,3348.3,6.02388636]
[1735718196816,0.2993,3348.4,3348.3,13.07342761]
[1735718204614,0.2993,3348.4,3348.3,13.37272761]
[1735718204811,0.2993,3348.4,3348.3,13.70164335]
[1735718205224,0.2993,3348.4,3348.3,13.37272761]
[1735718205721,0.2993,3348.4,3348.3,13.41784993]
[1735718206120,0.2993,3348.4,3348.3,13.71714531]
[1735718207020,5.88319122,3348.6,3348.5,0.29928]
[1735718207217,5.88319122,3348.6,3348.5,4.58034496]
[1735718207419,10.77856122,3348.7,3348.6,0.29927]
[1735718208014,6.62656122,3348.7,3348.6,0.29927]
[1735718208521,0.74337,3348.7,3348.6,6.32315636]
[1735718209533,5.88319122,3348.9,3348.8,0.29925]
[1735718209825,0.29924,3348.9,3348.8,0.29925]
[1735718210329,0.29924,3348.9,3348.8,0.73705]
[1735718210822,0.29924,3348.9,3348.8,13.81047761]
[1735718211233,0.73233,3349.1,3349.0,0.29923]
[1735718211526,0.29923,3349.0,3348.9,1.37250496]
[1735718211915,0.29923,3349.0,3348.9,6.06466217]
[1735718212120,0.29923,3349.0,3348.9,4.99139721]
[1735718214131,0.29923,3349.0,3348.9,0.29924]
[1735718214427,0.4331,3349.1,3348.8,5.12995721]
[1735718214632,0.29924,3349.0,3348.9,0.29924]
[1735718215628,0.29923,3349.0,3348.8,5.12995721]
[1735718215824,0.29923,3349.0,3348.9,0.29924]
[1735718216726,0.4331,3349.1,3348.8,5.12995721]
[1735718216930,0.4429,3348.9,3348.7,4.69215721]
[1735718217230,1.83181496,3348.8,3348.7,4.69215721]
[1735718218426,1.83181496,3348.8,3348.5,3.2078]
[1735718218427,0.29927,3348.6,3348.5,3.2078]
[1735718219430,1.37253496,3348.6,3348.5,3.2078]
[1735718219629,0.29929,3348.4,3348.3,4.69215721]
[1735718219832,0.8995,3348.5,3348.3,4.99145721]
[1735718220032,0.8995,3348.5,3348.4,0.74239]
[1735718220232,0.4657,3348.5,3348.4,0.74239]
[1735718220732,0.4657,3348.5,3348.4,1.07109809]
[1735718221231,0.422,3348.7,3348.6,0.29927]
[1735718222432,0.72126,3348.7,3348.6,0.29927]
[1735718222935,0.72126,3348.7,3348.6,0.62799085]
[1735718223625,0.422,3348.7,3348.6,0.62799085]
[1735718224034,1.20026,3348.8,3348.7,0.29926]
[1735718224632,0.4417,3348.8,3348.7,0.29926]
[1735718224835,0.74095,3348.8,3348.7,0.29926]
[1735718225030,0.74095,3348.8,3348.6,0.29926]
[1735718225430,0.74095,3348.8,3348.6,4.99141721]
[1735718226735,0.74095,3348.8,3348.7,0.32872676]
[1735718227343,0.29926,3348.7,3348.6,4.99141721]
[1735718227639,0.29926,3348.7,3348.6,5.3201675]
[1735718227831,0.74096,3348.8,3348.7,0.29926]
[1735718228138,0.74096,3348.8,3348.7,0.32875029]
[1735718228530,0.74096,3348.8,3348.7,0.62801029]
[1735718230134,0.74096,3348.8,3348.7,0.62807901]
[1735718230339,0.4417,3348.8,3348.7,1.70134397]
[1735718230929,0.4417,3348.8,3348.7,6.39350118]
[1735718231131,0.4417,3348.8,3348.7,5.32023622]
[1735718231337,0.74095,3348.8,3348.7,5.32023622]
[1735718232733,0.74095,3348.8,3348.7,0.62807901]
[1735718232938,0.74095,3348.8,3348.7,0.29926]
[1735718233136,0.4417,3348.8,3348.7,0.62815424]
[1735718235341,0.74095,3348.8,3348.7,0.62815424]
[1735718236034,0.74095,3348.8,3348.7,0.29926]
[1735718236239,0.74095,3348.8,3348.7,0.62828135]
[1735718236538,0.74095,3348.8,3348.7,0.99144412]
[1735718238242,0.74095,3348.8,3348.7,0.66245052]
[1735718238448,0.74095,3348.8,3348.7,0.99154411]
[1735718239242,0.74095,3348.8,3348.7,0.66246015]
[1735718239444,0.74095,3348.8,3348.7,5.68371863]
[1735718241247,0.74095,3348.8,3348.7,5.38445863]
[1735718241449,0.74095,3348.8,3348.7,5.02125848]
[1735718242343,0.74095,3348.8,3348.7,5.02140562]
[1735718242849,0.74095,3348.8,3348.7,0.32924841]
[1735718245946,0.74095,3348.8,3348.7,0.32926313]
[1735718245947,0.4417,3348.8,3348.7,0.32926313]
[1735718246266,0.74095,3348.8,3348.7,0.32926313]
[1735718248550,0.4417,3348.8,3348.6,9.35422721]
[1735718248757,0.74095,3348.8,3348.7,0.32933793]
[1735718249455,0.29926,3348.7,3348.6,4.69215721]
[1735718249650,0.29926,3348.7,3348.6,5.02155656]
[1735718250656,0.29926,3348.7,3348.6,0.32939935]
[1735718254858,0.29926,3348.7,3348.6,0.32930704]
[1735718255259,0.29926,3348.7,3348.6,0.32929299]
[1735718257059,0.29926,3348.7,3348.6,0.32928861]
[1735718257451,0.29926,3348.7,3348.5,4.69215721]
[1735718257452,0.29927,3348.6,3348.5,4.69215721]
[1735718257660,2.25933496,3348.6,3348.5,2.27695721]
[1735718259260,0.29931,3348.2,3348.1,3.2078]
[1735718259456,1.37257496,3348.2,3348.1,3.2078]
[1735718260164,6.08050162,3348.2,3348.1,3.2078]
[1735718261061,0.29932,3348.1,3347.9,0.29933]
[1735718261264,0.4369,3348.0,3347.9,0.29933]
[1735718261461,0.73622,3348.0,3347.9,3.50713]
[1735718261660,0.73622,3348.0,3347.9,3.2078]
[1735718261859,1.80948496,3348.0,3347.9,3.2078]
[1735718266964,0.29935,3347.8,3347.6,0.29935]
[1735718267161,0.29935,3347.8,3347.7,3.2078]
[1735718269764,1.37261496,3347.8,3347.7,3.2078]
[1735718277284,1.80211496,3347.8,3347.7,3.2078]
[1735718280084,5.95411496,3347.8,3347.7,3.2078]
[1735718287898,0.29938,3347.4,3347.3,0.9203]
[1735718288083,1.37264496,3347.4,3347.3,4.1281]
[1735718289887,0.437,3347.7,3347.3,5.20136496]
[1735718290090,0.29937,3347.6,3347.5,0.29936]
[1735718292285,1.07326496,3347.7,3347.4,3.2078]
[1735718292586,1.37263496,3347.5,3347.4,3.2078]
[1735718294092,1.07326496,3347.5,3347.3,0.9203]
[1735718294296,0.72868,3347.4,3347.3,0.9203]
[1735718294591,0.72868,3347.4,3347.3,4.1281]
[1735718303684,0.72868,3347.4,3347.3,3.668]
[1735718303890,0.72868,3347.4,3347.3,3.2078]
[1735718304090,4.5813,3347.4,3347.0,0.64830132]
[1735718304290,0.29939,3347.2,3347.1,0.32971431]
[1735718304584,0.2994,3347.1,3347.0,0.19890132]
[1735718304894,0.732,3347.1,3347.0,0.52861186]
[1735718305497,0.732,3347.1,3347.0,0.19890132]
[1735718306793,0.4326,3347.1,3346.9,0.4549]
[1735718306994,1.37267496,3347.0,3346.9,0.4549]
[1735718313903,1.37267496,3347.0,3346.9,0.75432]
[1735718317603,0.2994,3347.1,3347.0,0.29941]
[1735718317808,8.85992666,3347.3,3347.0,0.32939348]
[1735718318003,4.152,3347.3,3347.2,0.29939]
[1735718318504,4.152,3347.3,3347.2,0.62874347]
[1735718319003,1.37264496,3347.4,3347.2,0.62874347]
[1735718319199,1.37264496,3347.4,3347.3,0.73019]
[1735718322612,1.37264496,3347.4,3347.3,0.4308]
[1735718322809,0.29939,3347.3,3347.2,0.29939]
[1735718323112,0.72569,3347.3,3347.2,0.29939]
[1735718323308,0.29939,3347.2,3347.1,3.50719]
[1735718323509,1.37265496,3347.2,3347.1,3.83666525]
[1735718326016,1.37265496,3347.2,3347.1,3.83667571]
[1735718327318,1.07326496,3347.2,3347.1,3.83667571]
[1735718327509,0.72569,3347.3,3347.2,0.29939]
[1735718327816,0.72569,3347.3,3347.2,0.62886582]
[1735718329117,0.72569,3347.3,3347.2,0.62885151]
[1735718329517,0.72569,3347.3,3347.2,0.62884924]
[1735718331305,0.72569,3347.3,3347.2,0.62884865]
[1735718331911,0.72569,3347.3,3347.2,3.83664865]
[1735718332314,0.72569,3347.3,3347.2,3.83670892]
[1735718335325,0.72569,3347.3,3347.2,3.83669217]
[1735718336121,0.72569,3347.3,3347.2,0.62889217]
[1735718338520,0.72569,3347.3,3347.2,0.62934611]
[1735718338923,0.72569,3347.3,3347.2,0.29939]
[1735718339123,0.72569,3347.3,3347.2,0.62935557]
[1735718340720,0.72569,3347.3,3347.2,0.62938746]
[1735718341121,0.72569,3347.3,3347.2,0.62938562]
[1735718342819,1.07326496,3347.4,3347.2,0.62938562]
[1735718343120,0.4222,3347.5,3347.3,0.32999562]
[1735718343327,0.4222,3347.5,3347.4,0.75708]
[1735718344228,0.4222,3347.5,3347.4,1.08714911]
[1735718344725,0.4222,3347.5,3347.4,0.75708]
[1735718345226,0.4222,3347.5,3347.4,1.08719643]
[1735718345424,0.4222,3347.5,3347.4,0.75708]
[1735718345625,0.4222,3347.5,3347.4,1.08719081]
[1735718345927,0.72157,3347.5,3347.4,1.08719081]
[1735718346129,0.72157,3347.5,3347.4,1.08718984]
[1735718346628,0.72157,3347.5,3347.4,0.62948984]
[1735718346928,0.72157,3347.5,3347.4,0.29938]
[1735718347422,0.29937,3347.5,3347.4,0.33027674]
[1735718347621,0.29939,3347.4,3347.3,0.29938]
[1735718347823,0.29939,3347.4,3347.3,0.62966882]
[1735718348922,0.29939,3347.4,3347.3,0.29938]
[1735718349132,0.29939,3347.4,3347.3,0.62967117]
[1735718350129,0.29939,3347.4,3347.3,0.62966757]
[1735718351634,0.73657,3347.5,3347.4,0.29938]
[1735718351834,0.73657,3347.5,3347.4,0.62966757]
[1735718353135,0.73657,3347.5,3347.4,0.62955586]
[1735718353334,0.73657,3347.5,3347.4,0.29938]
[1735718354936,0.73657,3347.5,3347.4,0.62958559]
[1735718356135,0.73657,3347.5,3347.4,0.62924265]
[1735718356336,0.73657,3347.5,3347.4,0.95909894]
[1735718356638,0.73657,3347.5,3347.4,0.95908636]
[1735718356836,0.73657,3347.5,3347.4,0.95909485]
[1735718357031,0.4372,3347.5,3347.4,0.95909485]
[1735718357435,0.73657,3347.5,3347.4,0.95909485]
[1735718359139,0.4372,3347.5,3347.4,0.95909485]
[1735718361742,4.70773752,3347.6,3347.5,0.29937]
[1735718362143,4.70773752,3347.6,3347.5,0.74987]
[1735718362652,5.00709752,3347.6,3347.5,0.74987]
[1735718362852,5.46699752,3347.6,3347.5,0.74987]
[1735718363656,0.75926,3347.6,3347.5,0.29937]
[1735718368952,0.29938,3347.5,3347.4,0.29937]
[1735718369154,0.75568,3347.5,3347.4,0.29937]
[1735718369854,5.47021392,3347.5,3347.4,0.29937]
[1735718370359,5.47021392,3347.5,3347.4,0.62918848]
[1735718370661,5.47021392,3347.5,3347.4,0.29937]
[1735718371161,5.47021392,3347.5,3347.4,0.6291902]
[1735718371561,5.47021392,3347.5,3347.4,0.62919205]
[1735718371764,5.47021392,3347.5,3347.4,0.62919743]
[1735718371964,5.47021392,3347.5,3347.4,0.62919736]
[1735718372763,5.17083392,3347.5,3347.4,0.62919736]
[1735718374856,5.17083392,3347.5,3347.4,0.29937]
[1735718375057,5.17083392,3347.5,3347.4,0.62920644]
[1735718375561,5.17083392,3347.5,3347.4,0.62920404]
[1735718376262,5.47020392,3347.5,3347.4,0.62920404]
[1735718377859,5.47020392,3347.5,3347.4,1.06240404]
[1735718378062,5.47020392,3347.5,3347.4,1.06241598]
[1735718378260,5.17083392,3347.5,3347.4,1.06241598]